bitfinex/quotes_SOLUSD_20250527
["timestamp","ask_amount","ask_price","bid_price","bid_amount"]
[1748331025619,1.71890219,174.53,174.48,95.90594162]
[1748331025820,21.80484381,174.53,174.48,95.90594162]
[1748331026817,21.80484381,174.53,174.49,75.82]
[1748331028745,21.80484381,174.53,174.47,20.08594162]
[1748331028946,21.80484381,174.53,174.48,75.82]
[1748331029649,26.10209929,174.53,174.49,75.82]
[1748331030536,6.01615767,174.53,174.49,75.82]
[1748331030735,26.10209929,174.53,174.49,75.82]
[1748331031546,1.71890219,174.53,174.49,95.90594162]
[1748331033136,1.71890219,174.53,174.5,20.08594162]
[1748331034048,1.71880371,174.54,174.5,20.08594162]
[1748331034252,21.80474533,174.54,174.49,95.90594162]
[1748331034451,21.80474533,174.54,174.51,20.08594162]
[1748331034452,1.71880371,174.54,174.51,20.08594162]
[1748331035038,20.08594162,174.56,174.49,75.82]
[1748331035039,1.71868481,174.56,174.52,20.08594162]
[1748331035254,1.71868481,174.56,174.53,54.44594162]
[1748331036049,1.71868481,174.56,174.52,20.08594162]
[1748331036227,1.71868481,174.56,174.54,75.82]
[1748331037946,1.71850833,174.57,174.54,75.82]
[1748331038153,14.26802535,174.57,174.54,75.82]
[1748331040547,1.71850833,174.57,174.54,75.82]
[1748331041134,1.71850833,174.57,174.54,88.36951702]
[1748331041654,1.71850833,174.57,174.55,88.36951702]
[1748331041856,1.71821305,174.6,174.56,12.54951702]
[1748331042059,1.71821305,174.6,174.58,12.54951702]
[1748331042359,1.71811465,174.61,174.59,34.36]
[1748331043154,1.71811465,174.61,174.59,46.90951702]
[1748331043330,1.71811465,174.61,174.59,34.36]
[1748331045367,1.71772115,174.65,174.59,46.90951702]
[1748331045655,1.71772115,174.65,174.63,12.54951702]
[1748331045857,1.71772115,174.65,174.64,74.98]
[1748331046057,1.71763216,174.66,174.64,74.98]
[1748331048273,1.71752447,174.67,174.64,74.98]
[1748331048487,14.26704149,174.67,174.64,74.98]
[1748331050156,4.29375862,174.68,174.64,74.98]
[1748331050586,16.84327564,174.68,174.64,74.98]
[1748331050883,12.54951702,174.67,174.64,74.98]
[1748331051087,12.54951702,174.67,174.62,12.54951702]
[1748331051383,12.54951702,174.66,174.63,74.94]
[1748331052082,1.71772115,174.65,174.64,40.6]
[1748331052250,14.26723817,174.65,174.59,38.54951702]
[1748331052454,12.54951702,174.63,174.6,74.94]
[1748331053083,12.54951702,174.64,174.6,74.94]
[1748331053381,12.54951702,174.63,174.61,40.6]
[1748331053568,12.54951702,174.63,174.61,74.94]
[1748331054287,4.29430289,174.65,174.61,74.94]
[1748331054477,12.54951702,174.64,174.62,34.34]
[1748331055381,1.71791788,174.63,174.62,34.34]
[1748331056995,1.71791788,174.63,174.61,40.6]
[1748331056996,14.2674349,174.63,174.61,40.6]
[1748331057171,12.54951702,174.62,174.61,40.6]
[1748331057354,12.54951702,174.62,174.61,74.94]
[1748331058256,12.54951702,174.62,174.61,40.6]
[1748331058471,12.54951702,174.62,174.57,12.54951702]
[1748331059083,1.71811465,174.61,174.57,12.54951702]
[1748331059271,34.58706724,174.69,174.57,12.54951702]
[1748331059272,6.01064742,174.69,174.6,12.54951702]
[1748331059577,12.54951702,174.68,174.63,12.54951702]
[1748331059783,6.01064742,174.69,174.64,12.54951702]
[1748331059979,18.56016444,174.69,174.64,12.54951702]
[1748331060185,12.54951702,174.68,174.63,12.54951702]
[1748331060370,6.01064742,174.69,174.63,12.54951702]
[1748331060565,12.54951702,174.68,174.63,12.54951702]
[1748331060873,6.01064742,174.69,174.63,12.54951702]
[1748331061082,18.56016444,174.69,174.64,12.54951702]
[1748331061666,6.01064742,174.69,174.64,12.54951702]
[1748331061871,18.56016444,174.69,174.64,12.54951702]
[1748331062061,6.01064742,174.69,174.64,12.54951702]
[1748331062476,6.01064742,174.69,174.65,12.54951702]
[1748331062663,6.01064742,174.69,174.66,34.34]
[1748331063488,4.29331959,174.69,174.66,34.34]
[1748331063994,14.26664826,174.71,174.66,46.88951702]
[1748331064170,1.71663996,174.76,174.69,18.64964886]
[1748331064368,1.71663996,174.76,174.73,12.54951702]
[1748331064571,1.71663996,174.76,174.74,46.88951702]
[1748331064881,1.71655367,174.77,174.75,12.54951702]
[1748331065198,5.77155078,174.78,174.76,12.54951702]
[1748331065376,5.77155078,174.78,174.77,43.12]
[1748331065377,1.71645883,174.78,174.77,43.12]
[1748331065697,1.6398,174.84,174.77,43.12]
[1748331065698,1.71624713,174.8,174.77,43.12]
[1748331066004,1.71624713,174.8,174.78,20.02302704]
[1748331066169,1.71624713,174.8,174.79,34.34]
[1748331067562,24.31276308,174.84,174.79,34.34]
[1748331067989,20.02302704,174.83,174.79,34.34]
[1748331068165,4.28973604,174.84,174.79,34.34]
[1748331068365,20.02302704,174.83,174.79,34.34]
[1748331069691,1.71605079,174.82,174.79,34.34]
[1748331069992,21.73907783,174.82,174.79,34.34]
[1748331070198,1.71605079,174.82,174.79,34.34]
[1748331070488,1.71605079,174.82,174.79,54.36302704]
[1748331070878,1.71605079,174.82,174.81,20.02302704]
[1748331071173,1.71605079,174.82,174.8,20.02302704]
[1748331071809,6.00559053,174.84,174.8,20.02302704]
[1748331072298,26.02861757,174.84,174.79,34.34]
[1748331072505,6.00559053,174.84,174.79,54.36302704]
[1748331072682,26.02861757,174.84,174.79,54.36302704]
[1748331072881,6.00559053,174.84,174.8,20.02302704]
[1748331073098,26.02861757,174.84,174.79,54.36302704]
[1748331073580,6.00559053,174.84,174.79,54.36302704]
[1748331073779,6.00446045,174.87,174.79,54.36302704]
[1748331073998,20.02302704,174.85,174.8,20.02302704]
[1748331074174,6.00446045,174.87,174.81,20.02302704]
[1748331074371,20.02302704,174.85,174.81,20.02302704]
[1748331074606,20.02302704,174.85,174.8,20.02302704]
[1748331074804,6.00446045,174.87,174.79,34.34]
[1748331075005,20.02302704,174.84,174.79,54.36302704]
[1748331075805,1.71595263,174.83,174.79,54.36302704]
[1748331075993,1.71595263,174.83,174.8,20.02302704]
[1748331076480,1.71595263,174.83,174.79,54.36302704]
[1748331076685,1.71595263,174.83,174.81,20.02302704]
[1748331077080,1.71595263,174.83,174.79,34.34]
[1748331077279,1.71595263,174.83,174.81,20.02302704]
[1748331077685,1.71595263,174.83,174.8,20.02302704]
[1748331078087,1.71585449,174.84,174.79,34.34]
[1748331078282,1.71585449,174.84,174.8,20.02302704]
[1748331079588,26.02851776,174.84,174.81,34.3]
[1748331080101,6.00549072,174.84,174.81,34.3]
[1748331080287,26.02851776,174.84,174.81,34.3]
[1748331083911,6.00446045,174.87,174.81,34.3]
[1748331084107,20.02302704,174.84,174.81,34.3]
[1748331084982,1.71595263,174.83,174.81,34.3]
[1748331085922,1.71595263,174.83,174.81,54.32302704]
[1748331086718,1.71595263,174.83,174.81,34.3]
[1748331087102,1.71585449,174.84,174.82,43.08]
[1748331088216,1.71585449,174.84,174.82,55.59031216]
[1748331088914,1.71585449,174.84,174.82,43.08]
[1748331089213,14.579855,174.9,174.82,43.08]
[1748331089413,12.51031216,174.87,174.83,12.51031216]
[1748331089906,12.51031216,174.88,174.83,12.51031216]
[1748331091229,14.22587229,174.87,174.83,12.51031216]
[1748331092620,14.22587229,174.87,174.82,55.59031216]
[1748331093627,14.22587229,174.87,174.82,43.08]
[1748331093802,14.22587229,174.87,174.82,55.59031216]
[1748331094002,6.00343052,174.9,174.85,12.51031216]
[1748331094223,12.51031216,174.89,174.86,34.3]
[1748331095195,12.51031216,174.88,174.86,34.3]
[1748331096001,6.00240095,174.93,174.86,34.3]
[1748331096420,12.51031216,174.92,174.87,12.51031216]
[1748331097006,6.00240095,174.93,174.87,12.51031216]
[1748331097241,6.00240095,174.93,174.86,52.94964886]
[1748331097427,18.51271311,174.93,174.88,12.51031216]
[1748331097603,18.51271311,174.93,174.89,45.08]
[1748331097805,12.51031216,174.92,174.89,45.08]
[1748331098102,1.7151678,174.91,174.89,45.08]
[1748331099027,1.71506974,174.92,174.89,45.08]
[1748331100924,1.71506974,174.92,174.89,57.59031216]
[1748331101415,1.71506974,174.92,174.89,45.08]
[1748331101611,1.71506974,174.92,174.89,57.59031216]
[1748331102036,1.71477565,174.95,174.91,12.51031216]
[1748331102329,1.71477565,174.95,174.93,12.51031216]
[1748331102519,1.71457964,174.97,174.92,34.3]
[1748331102707,26.0,174.96,174.92,46.81031216]
[1748331103118,12.51031216,174.95,174.92,34.3]
[1748331103428,12.51031216,174.95,174.9,12.51031216]
[1748331103627,26.0,174.96,174.93,79.36]
[1748331103833,38.51031216,174.96,174.93,79.36]
[1748331104038,12.51031216,174.95,174.93,79.36]
[1748331104338,26.0,174.96,174.93,45.06]
[1748331104339,12.51031216,174.94,174.93,45.06]
[1748331104507,14.22518583,174.94,174.93,79.36]
[1748331105109,1.71487367,174.94,174.93,79.36]
[1748331105810,14.22518583,174.94,174.93,79.36]
[1748331106440,1.71487367,174.94,174.93,79.36]
[1748331106612,14.22518583,174.94,174.93,79.36]
[1748331106936,14.22508781,174.95,174.93,79.36]
[1748331107849,12.51031216,174.94,174.93,79.36]
[1748331108705,1.71477565,174.95,174.93,79.36]
[1748331109028,6.00102874,174.97,174.93,79.36]
[1748331109340,12.51031216,174.96,174.93,79.36]
[1748331109839,18.5113409,174.97,174.93,79.36]
[1748331110508,12.51031216,174.96,174.93,79.36]
[1748331111024,1.71477565,174.95,174.93,79.36]
[1748331112733,1.71477565,174.95,174.93,91.87031216]
[1748331113034,1.71477565,174.95,174.93,79.36]
[1748331113231,1.71467764,174.96,174.93,91.87031216]
[1748331114250,27.71460382,174.97,174.93,79.36]
[1748331114543,27.71460382,174.97,174.93,91.87031216]
[1748331114909,1.71418776,175.01,174.94,18.64964886]
[1748331115115,3.25856043,175.02,174.96,18.64964886]
[1748331115313,3.25856043,175.02,175.01,12.51031216]
[1748331115510,3.25856043,175.02,175.01,112.21996102]
[1748331115925,3.25856043,175.02,175.01,113.77306102]
[1748331116330,1.71341975,175.09,175.02,18.64964886]
[1748331116654,1.71341975,175.09,175.01,0.5]
[1748331116866,1.71341975,175.09,175.03,81.06]
[1748331117155,1.71341975,175.09,175.05,12.51031216]
[1748331117351,1.71341975,175.09,175.06,12.51031216]
[1748331117554,1.71301319,175.13,175.07,40.6054]
[1748331117732,14.22332535,175.13,175.08,12.51031216]
[1748331118134,14.22332535,175.13,175.07,40.6054]
[1748331118353,5.99554616,175.13,175.07,34.28]
[1748331118532,12.51031216,175.12,175.07,46.79031216]
[1748331118733,12.51031216,175.12,175.07,34.28]
[1748331118950,12.51031216,175.1,175.07,34.28]
[1748331119128,12.51031216,175.11,175.08,34.28]
[1748331119333,1.71330668,175.1,175.09,34.28]
[1748331119522,14.22361884,175.1,175.09,83.1]
[1748331119729,18.50688554,175.1,175.03,7.7643]
[1748331119937,12.51031216,175.07,175.04,83.1]
[1748331120266,12.51031216,175.08,175.04,83.1]
[1748331120472,12.51031216,175.09,175.04,95.61031216]
[1748331120628,5.99657338,175.1,175.04,95.61031216]
[1748331120835,18.50688554,175.1,175.05,12.51031216]
[1748331121037,5.99657338,175.1,175.05,12.51031216]
[1748331121262,16.79357886,175.1,175.05,12.51031216]
[1748331121572,12.51031216,175.09,175.06,0.5]
[1748331121943,12.51031216,175.08,175.06,0.5]
[1748331122264,12.51031216,175.08,175.07,48.82]
[1748331122433,12.51031216,175.08,175.07,83.08]
[1748331123239,14.22381455,175.08,175.07,83.08]
[1748331124040,14.22381455,175.08,175.07,48.82]
[1748331124247,14.22381455,175.08,175.07,83.08]
[1748331125147,1.71350239,175.08,175.07,83.08]
[1748331125347,14.22381455,175.08,175.07,83.08]
[1748331126263,14.22381455,175.08,175.07,48.82]
[1748331126565,14.22381455,175.08,175.07,83.08]
[1748331127584,1.71350239,175.08,175.07,83.08]
[1748331127750,14.22381455,175.08,175.07,83.08]
[1748331127956,1.71350239,175.08,175.07,83.08]
[1748331128674,1.71350239,175.08,175.07,95.59031216]
[1748331128881,1.71350239,175.08,175.07,83.08]
[1748331129055,1.713111,175.12,175.07,83.08]
[1748331129463,7.707,175.18,175.07,83.08]
[1748331129464,4.28192907,175.16,175.07,83.08]
[1748331129766,12.51031216,175.15,175.1,12.51031216]
[1748331129946,4.28192907,175.16,175.11,46.77031216]
[1748331130255,12.51031216,175.15,175.11,46.77031216]
[1748331130457,1.71262202,175.17,175.11,34.26]
[1748331130654,1.71262202,175.17,175.14,12.51031216]
[1748331130842,1.71262202,175.17,175.15,83.06]
[1748331131392,16.79148557,175.19,175.15,83.06]
[1748331131393,14.22283642,175.18,175.15,83.06]
[1748331132168,1.71252426,175.18,175.15,83.06]
[1748331133046,12.51031216,175.17,175.15,83.06]
[1748331133563,1.71271979,175.16,175.15,83.06]
[1748331133957,14.22303195,175.16,175.15,83.06]
[1748331134542,1.71271979,175.16,175.15,83.06]
[1748331135076,14.22303195,175.16,175.15,83.06]
[1748331135372,1.71271979,175.16,175.15,83.06]
[1748331135566,14.22303195,175.16,175.15,83.06]
[1748331135762,1.71271979,175.16,175.15,83.06]
[1748331136574,1.71271979,175.16,175.15,95.57031216]
[1748331137193,1.71271979,175.16,175.15,83.06]
[1748331137675,4.28117341,175.19,175.15,95.57031216]
[1748331137876,16.79148557,175.19,175.15,95.57031216]
[1748331138576,16.79148557,175.19,175.15,83.06]
[1748331138757,18.50391207,175.19,175.15,95.57031216]
[1748331138958,5.99359991,175.19,175.15,83.06]
[1748331139174,5.99359991,175.19,175.15,95.57031216]
[1748331139975,18.50391207,175.19,175.15,83.06]
[1748331140864,12.51031216,175.18,175.15,83.06]
[1748331141065,12.51031216,175.17,175.15,48.8]
[1748331141269,12.51031216,175.17,175.16,34.24]
[1748331141483,5.99359991,175.19,175.16,34.24]
[1748331141777,12.51031216,175.17,175.16,34.24]
[1748331142479,14.22293418,175.17,175.16,34.24]
[1748331143274,14.22293418,175.17,175.15,34.24]
[1748331143275,5.99417708,175.17,175.15,34.24]
[1748331144164,18.50448924,175.17,175.15,34.24]
[1748331145060,5.99417708,175.17,175.15,34.24]
[1748331145266,12.51031216,175.16,175.13,50.64]
[1748331145474,12.51031216,175.14,175.13,50.64]
[1748331145651,12.51031216,175.14,175.13,84.88]
[1748331146267,12.51031216,175.15,175.13,84.88]
[1748331146683,1.71291538,175.14,175.13,50.64]
[1748331146860,1.71291538,175.14,175.13,84.88]
[1748331148280,14.22322754,175.14,175.13,84.88]
[1748331149288,18.50551599,175.14,175.13,84.88]
[1748331149487,5.99520383,175.14,175.13,84.88]
[1748331149666,18.50551599,175.14,175.13,84.88]
[1748331151187,5.99520383,175.14,175.13,84.88]
[1748331151387,18.50551599,175.14,175.13,84.88]
[1748331151978,5.99520383,175.14,175.13,84.88]
[1748331152283,18.50551599,175.14,175.13,84.88]
[1748331153371,18.50551599,175.14,175.13,50.64]
[1748331154284,26.0,175.11,175.06,50.64]
[1748331154603,26.0,175.11,175.07,34.24]
[1748331154811,26.0,175.11,175.06,50.64]
[1748331155094,5.99657338,175.1,175.06,50.64]
[1748331155272,5.99657338,175.1,175.07,34.24]
[1748331155473,5.99657338,175.1,175.06,50.64]
[1748331155696,12.51031216,175.07,175.06,84.88]
[1748331155898,12.51031216,175.07,175.06,50.64]
[1748331156074,12.51031216,175.07,175.06,84.88]
[1748331156675,14.22391243,175.07,175.06,84.88]
[1748331156897,14.22391243,175.07,175.06,50.64]
[1748331157280,53.07591448,175.07,174.99,50.64]
[1748331157591,12.51031216,175.0,174.99,50.64]
[1748331157973,12.51031216,175.0,174.99,84.88]
[1748331158574,1.71428571,175.0,174.99,84.88]
[1748331159205,1.71408981,175.02,174.99,84.88]
[1748331159501,14.22440197,175.02,174.99,84.88]
[1748331159703,1.71408981,175.02,174.99,50.64]
[1748331159886,14.22440197,175.02,175.0,34.26]
[1748331160699,1.71408981,175.02,175.0,34.26]
[1748331161096,14.22440197,175.02,175.0,34.26]
[1748331161299,1.71408981,175.02,175.0,34.26]
[1748331161603,14.22440197,175.02,175.0,34.26]
[1748331162172,12.51031216,175.01,175.0,34.26]
[1748331162791,14.22440197,175.02,175.0,34.26]
[1748331164902,4.2849702,175.04,175.0,34.26]
[1748331165289,16.79528236,175.04,175.0,34.26]
[1748331165606,12.51031216,175.03,175.0,34.26]
[1748331166182,1.71408981,175.02,175.0,34.26]
[1748331166902,12.51031216,175.05,175.0,46.77031216]
[1748331167118,12.51031216,175.04,175.0,46.77031216]
[1748331167605,5.99794356,175.06,175.01,12.51031216]
[1748331167803,5.99794356,175.06,175.02,12.51031216]
[1748331168112,18.50825572,175.06,175.01,12.51031216]
[1748331168305,5.99794356,175.06,175.01,12.51031216]
[1748331168516,18.50825572,175.06,175.01,12.51031216]
[1748331170513,5.99794356,175.06,175.02,12.51031216]
[1748331171714,5.99794356,175.06,175.0,34.26]
[1748331172014,5.99794356,175.06,175.02,12.51031216]
[1748331172212,5.99794356,175.06,175.0,34.26]
[1748331172403,18.50825572,175.06,175.0,34.26]
[1748331172711,18.50825572,175.06,175.01,12.51031216]
[1748331172910,1.71369816,175.06,175.04,12.51031216]
[1748331173106,1.71350239,175.08,175.05,96.61031216]
[1748331173298,1.71350239,175.08,175.06,12.51031216]
[1748331174325,1.71350239,175.08,175.05,84.1]
[1748331174614,5.99657338,175.1,175.06,12.51031216]
[1748331175188,5.99657338,175.1,175.05,84.1]
[1748331175420,5.99657338,175.1,175.06,12.51031216]
[1748331176311,5.99657338,175.1,175.05,84.1]
[1748331176512,18.50688554,175.1,175.05,84.1]
[1748331176715,18.50688554,175.1,175.05,96.61031216]
[1748331176911,12.51031216,175.09,175.05,96.61031216]
[1748331177215,12.51031216,175.09,175.05,49.84]
[1748331177403,5.99657338,175.1,175.06,34.26]
[1748331177602,12.51031216,175.07,175.05,49.84]
[1748331177809,12.51031216,175.07,175.06,34.26]
[1748331178712,14.22391243,175.07,175.06,34.26]
[1748331178909,14.22391243,175.07,175.05,49.84]
[1748331179218,12.51031216,175.06,175.05,49.84]
[1748331180114,1.71360027,175.07,175.05,49.84]
[1748331180311,12.51031216,175.06,175.05,49.84]
[1748331180708,14.22401032,175.06,175.05,49.84]
[1748331181602,1.71369816,175.06,175.05,49.84]
[1748331181815,14.22401032,175.06,175.05,49.84]
[1748331182820,30.2832667,175.1,175.05,49.84]
[1748331182821,12.51031216,175.09,175.05,49.84]
[1748331183799,12.51031216,175.08,175.05,49.84]
[1748331184804,4.2832667,175.1,175.06,12.51031216]
[1748331185825,1.713111,175.12,175.08,12.51031216]
[1748331186131,1.713111,175.12,175.09,46.77031216]
[1748331186303,1.713111,175.12,175.09,34.26]
[1748331186907,14.22342316,175.12,175.09,34.26]
[1748331187919,12.51031216,175.12,175.09,34.26]
[1748331188925,4.2826656,175.13,175.09,34.26]
[1748331189610,16.79297776,175.13,175.09,34.26]
[1748331189806,4.2826656,175.13,175.09,34.26]
[1748331190010,4.2826656,175.13,175.09,46.77031216]
[1748331190243,16.79297776,175.13,175.09,34.26]
[1748331190609,4.2826656,175.13,175.09,34.26]
[1748331191128,16.79297776,175.13,175.09,34.26]
[1748331191440,4.2826656,175.13,175.09,34.26]
[1748331191620,4.2826656,175.13,175.09,46.77031216]
[1748331191814,4.2826656,175.13,175.1,12.51031216]
[1748331192017,14.22312974,175.15,175.1,12.51031216]
[1748331193112,5.99486154,175.15,175.1,12.51031216]
[1748331193426,4.28204396,175.15,175.1,12.51031216]
[1748331193646,16.79235612,175.15,175.1,12.51031216]
[1748331194310,4.28204396,175.15,175.1,12.51031216]
[1748331194509,16.79235612,175.15,175.1,12.51031216]
[1748331195447,4.28204396,175.15,175.1,12.51031216]
[1748331196749,5.99486154,175.15,175.11,12.51031216]
[1748331197057,5.99486154,175.15,175.12,47.96]
[1748331197618,18.5051737,175.15,175.12,47.96]
[1748331199339,5.99486154,175.15,175.12,47.96]
[1748331199649,18.5051737,175.15,175.12,47.96]
[1748331200043,12.51031216,175.14,175.12,47.96]
[1748331201138,1.71301319,175.13,175.12,47.96]
[1748331201315,1.71301319,175.13,175.12,82.2]
[1748331202540,14.22332535,175.13,175.12,47.96]
[1748331202736,14.22332535,175.13,175.12,82.2]
[1748331202918,14.22332535,175.13,175.12,47.96]
[1748331204153,12.51031216,175.13,175.12,47.96]
[1748331206263,14.22332535,175.13,175.12,47.96]
[1748331208257,27.07092427,175.13,175.07,34.24]
[1748331208447,12.51031216,175.08,175.06,47.96]
[1748331208649,12.51031216,175.07,175.06,47.96]
[1748331209745,12.51031216,175.07,175.0,47.96]
[1748331210048,12.51031216,175.01,175.0,47.96]
[1748331210264,14.22449992,175.01,175.0,82.2]
[1748331210565,14.22449992,175.01,175.0,47.96]
[1748331210930,14.22449992,175.01,175.0,82.22]
[1748331212174,1.71418776,175.01,175.0,82.22]
[1748331212359,12.51031216,175.01,175.0,82.22]
[1748331212565,12.51031216,175.01,175.0,47.96]
[1748331212758,12.51031216,175.01,175.0,82.22]
[1748331214781,14.22449992,175.01,175.0,47.96]
[1748331215076,14.22449992,175.01,175.0,82.22]
[1748331215749,14.22449992,175.01,175.0,47.96]
[1748331216146,31.02028148,175.01,174.94,47.98]
[1748331216483,12.51031216,174.95,174.94,47.98]
[1748331216662,12.51031216,174.95,174.94,82.24]
[1748331216860,14.22508781,174.95,174.94,82.24]
[1748331217573,1.71477565,174.95,174.94,82.24]
[1748331218967,1.71467764,174.96,174.94,47.98]
[1748331219169,1.71467764,174.96,174.95,34.26]
[1748331219968,4.28630232,174.98,174.95,34.26]
[1748331220167,12.51031216,174.97,174.95,34.26]
[1748331220987,38.51031216,174.99,174.95,34.26]
[1748331221165,26.0,174.98,174.95,34.26]
[1748331222483,1.71457964,174.97,174.95,34.26]
[1748331224376,1.71448165,174.98,174.95,34.26]
[1748331227062,14.22479381,174.98,174.95,34.26]
[1748331229090,12.51031216,174.97,174.95,34.26]
[1748331230373,1.71448165,174.98,174.95,34.26]
[1748331230683,14.22479381,174.98,174.95,34.26]
[1748331231063,12.51031216,174.97,174.94,47.98]
[1748331231265,12.51031216,174.96,174.95,34.28]
[1748331231667,12.51031216,174.96,174.94,47.98]
[1748331231868,6.00068578,174.98,174.95,34.28]
[1748331232073,12.51031216,174.96,174.95,34.28]
[1748331232282,6.00068578,174.98,174.95,34.28]
[1748331232458,12.51031216,174.96,174.95,34.28]
[1748331233093,14.2249898,174.96,174.95,34.28]
[1748331233488,1.71467764,174.96,174.95,34.28]
[1748331233794,40.2249898,174.96,174.94,47.98]
[1748331233972,12.51031216,174.95,174.94,47.98]
[1748331235094,14.22508781,174.95,174.94,47.98]
[1748331236991,14.22508781,174.95,174.88,82.22]
[1748331236992,27.08590518,174.95,174.88,82.22]
[1748331237304,12.51031216,174.89,174.88,82.22]
[1748331237505,12.51031216,174.89,174.88,116.5]
[1748331237703,12.51031216,174.89,174.88,82.22]
[1748331237905,12.51031216,174.89,174.88,116.5]
[1748331238107,23.14947127,174.95,174.88,116.5]
[1748331238296,12.51031216,174.89,174.88,116.5]
[1748331238609,23.14947127,174.95,174.88,116.5]
[1748331238783,12.51031216,174.89,174.88,116.5]
[1748331239183,1.71536394,174.89,174.88,116.5]
[1748331241299,1.71526586,174.9,174.88,116.5]
[1748331243812,14.22557802,174.9,174.88,116.5]
[1748331244508,12.51031216,174.89,174.88,82.22]
[1748331244693,12.51031216,174.89,174.88,116.5]
[1748331244893,12.51031216,174.89,174.87,80.5]
[1748331245093,12.51031216,174.88,174.87,46.22]
[1748331245306,12.51031216,174.88,174.87,80.5]
[1748331245693,1.71546203,174.88,174.87,80.5]
[1748331245907,14.22577419,174.88,174.87,80.5]
[1748331246293,14.22577419,174.88,174.87,46.22]
[1748331246495,14.22577419,174.88,174.87,80.5]
[1748331247423,1.71546203,174.88,174.87,80.5]
[1748331247592,1.71526586,174.9,174.87,80.5]
[1748331247787,1.71526586,174.9,174.87,93.01031216]
[1748331248010,1.71526586,174.9,174.87,80.5]
[1748331248209,1.71487367,174.94,174.89,12.51031216]
[1748331248494,6.00205784,174.94,174.9,46.79031216]
[1748331248699,6.00205784,174.94,174.9,34.28]
[1748331248918,6.00205784,174.94,174.9,46.79031216]
[1748331249404,18.51237,174.94,174.9,34.28]
[1748331249715,4.28718417,174.94,174.9,46.79031216]
[1748331252031,1.71487367,174.94,174.91,12.51031216]
[1748331252722,1.71487367,174.94,174.9,34.28]
[1748331252887,1.71487367,174.94,174.9,46.79031216]
[1748331254623,1.71487367,174.94,174.91,12.51031216]
[1748331256925,1.71477565,174.95,174.91,12.51031216]
[1748331258702,12.51031216,174.96,174.91,12.51031216]
[1748331259421,12.51031216,174.93,174.87,46.22]
[1748331259726,12.51031216,174.9,174.87,46.22]
[1748331259929,12.51031216,174.9,174.88,34.28]
[1748331260819,1.71536394,174.89,174.88,34.28]
[1748331262319,6.00297074,174.92,174.88,34.28]
[1748331262520,12.51031216,174.9,174.88,34.28]
[1748331263025,12.51031216,174.89,174.87,46.22]
[1748331263228,12.51031216,174.88,174.87,80.5]
[1748331264822,6.00297074,174.92,174.87,80.5]
[1748331265127,12.51031216,174.89,174.87,80.5]
[1748331265334,12.51031216,174.88,174.87,80.5]
[1748331267243,14.22577419,174.88,174.87,46.22]
[1748331267420,1.71546203,174.88,174.87,80.5]
[1748331268116,14.22577419,174.88,174.87,80.5]
[1748331268631,14.22577419,174.88,174.87,46.22]
[1748331273310,27.09173941,174.88,174.82,43.04]
[1748331273531,12.51031216,174.83,174.82,77.34]
[1748331274244,12.51031216,174.83,174.82,43.04]
[1748331274415,12.51031216,174.83,174.82,77.34]
[1748331275237,14.22626479,174.83,174.82,77.34]
[1748331277260,14.22626479,174.83,174.82,43.04]
[1748331278537,1.71595263,174.83,174.82,43.04]
[1748331278749,14.22626479,174.83,174.82,43.04]
[1748331279537,6.00503496,174.86,174.82,43.04]
[1748331279827,12.51031216,174.83,174.82,43.04]
[1748331280233,12.51031216,174.83,174.82,77.34]
[1748331282039,14.22626479,174.83,174.82,77.34]
[1748331282245,1.71595263,174.83,174.82,77.34]
[1748331284237,1.71585449,174.84,174.82,77.34]
[1748331285825,18.51534712,174.86,174.82,77.34]
[1748331286828,6.00503496,174.86,174.82,77.34]
[1748331287033,18.51534712,174.86,174.82,77.34]
[1748331287847,4.28937672,174.86,174.82,89.85031216]
[1748331288146,4.28937672,174.86,174.83,12.51031216]
[1748331289255,1.71546203,174.88,174.85,12.51031216]
[1748331289428,1.71546203,174.88,174.82,78.9748]
[1748331289429,1.71546203,174.88,174.86,46.81031216]